fUST/lending_fUST_20240920
["ID","MTS","AMOUNT","RATE_DAILY","PERIOD"]
[338634204,1726827040203,-150.0,0.00014373,2]
[338634205,1726827040214,-205.04905102,0.0001442,2]
[338634206,1726827040224,-250.0,0.00014432,2]
[338634207,1726827040234,-250.0,0.00014471,2]
[338634208,1726827040246,-250.0,0.00014511,2]
[338634209,1726827040256,-250.0,0.00014551,2]
[338634210,1726827040266,-250.0,0.0001459,2]
[338634211,1726827040275,-250.0,0.0001463,2]
[338634212,1726827040284,-250.0,0.00014669,2]
[338634213,1726827040294,-1316.54840998,0.00014673,2]
[338634238,1726827042869,-283.80491571,0.00014673,2]
[338634294,1726827195242,150.5,0.00016408,120]
[338634295,1726827195696,150.5,0.00016398,120]
[338634296,1726827196170,150.5,0.00016388,120]
[338634297,1726827196632,150.5,0.00019439,120]
[338634298,1726827197105,168.82,0.00019429,120]
[338634300,1726827332776,186.6833836,0.00013293,2]
[338634307,1726827501648,250.0,0.00013928,2]
[338634308,1726827501726,250.0,0.00013966,2]
[338634309,1726827501971,250.0,0.00014004,2]
[338634315,1726827618873,205.04905102,0.00013915,2]
[338634317,1726827762384,201.9593857,0.00013345,2]
[338634319,1726827794420,150.5,0.00016361,120]
[338634320,1726827794719,150.5,0.00016351,120]
[338634321,1726827795181,150.5,0.00016341,120]
[338634322,1726827795645,186.3,0.0001944,120]
[338634323,1726827862349,24900.0,0.00013428,2]
[338634570,1726828086844,212.5,0.00013529,2]
[338634571,1726828087001,212.5,0.00013566,2]
[338634572,1726828087416,212.5,0.00013603,2]
[338634573,1726828087634,212.5,0.0001364,2]
[338634574,1726828087857,212.5,0.00013677,2]
[338634575,1726828088084,212.5,0.00013714,2]
[338634576,1726828088299,212.5,0.00013751,2]
[338634577,1726828088541,212.5,0.00013789,2]
[338634578,1726828088734,212.5,0.00013826,2]
[338634579,1726828088940,212.5,0.00013863,2]
[338634580,1726828089154,212.5,0.000139,2]
[338634581,1726828089377,212.5,0.00013937,2]
[338634582,1726828089588,212.5,0.00013974,2]
[338634583,1726828089797,212.5,0.00014011,2]
[338634584,1726828099016,244.003274,0.00013699,2]
[338634587,1726828118828,862.15684551,0.0002,120]
[338634588,1726828119706,50138.74063442,0.0002,120]
[338634589,1726828120201,150.0,2.75e-05,120]
[338634631,1726828231883,-212.5,0.00014048,2]
[338634632,1726828231892,-212.5,0.00014085,2]
[338634633,1726828231902,-212.5,0.00014122,2]
[338634634,1726828231912,-212.5,0.00014159,2]
[338634635,1726828231921,-212.5,0.00014197,2]
[338634636,1726828231931,-212.5,0.00014234,2]
[338634637,1726828231943,-7139.2745635,0.00014515,2]
[338634638,1726828231952,-300.0,0.00014572,2]
[338634639,1726828231962,-300.0,0.00014572,2]
[338634640,1726828231972,-3000.000001,0.00014573,2]
[338634641,1726828231981,-151.0,0.00014609,2]
[338634642,1726828231992,-151.0,0.00014609,2]
[338634643,1726828232001,-239.42888,0.00014609,2]
[338634644,1726828232011,-239.42888,0.00014609,2]
[338634645,1726828232020,-533.052703,0.00014609,2]
[338634646,1726828232030,-533.052703,0.00014609,2]
[338634647,1726828232040,-190.304279,0.00014609,2]
[338634648,1726828232049,-190.304279,0.00014609,2]
[338634649,1726828232059,-271.848462,0.00014609,2]
[338634650,1726828232068,-271.848462,0.00014609,2]
[338634651,1726828232078,-233.33635743,0.00014609,2]
[338634652,1726828232087,-151.0,0.0001477,2]
[338634653,1726828232097,-221.806102,0.0001477,2]
[338634654,1726828232107,-221.806102,0.0001477,2]
[338634655,1726828232116,-151.0,0.0001477,2]
[338634656,1726828232125,-151.0,0.0001477,2]
[338634657,1726828232135,-151.0,0.0001477,2]
[338634658,1726828232144,-151.0,0.0001477,2]
[338634659,1726828232154,-151.0,0.0001477,2]
[338634660,1726828232163,-151.0,0.0001477,2]
[338634661,1726828232173,-151.0,0.0001477,2]
[338634662,1726828232182,-179.281592,0.0001477,2]
[338634663,1726828232194,-179.281592,0.0001477,2]
[338634665,1726828232204,-4573.48613475,0.00014909,2]
[338634667,1726828232213,-151.987304,0.00014909,2]
[338634669,1726828232222,-420.40011,0.00014909,2]
[338634671,1726828232231,-420.40011,0.00014909,2]
[338634673,1726828232241,-151.0,0.00014909,2]
[338634675,1726828232251,-202.983051,0.00014909,2]
[338634676,1726828232261,-202.983051,0.00014909,2]
[338634677,1726828232271,-1879.38328246,0.00015,7]
[338634678,1726828232282,-500.0,0.00015009,2]
[338634679,1726828232294,-500.0,0.00015009,2]
[338634680,1726828232306,-500.0,0.00015009,2]
[338634681,1726828232320,-500.0,0.00015009,2]
[338634682,1726828232329,-500.0,0.00015009,2]
[338634683,1726828232339,-319.99919442,0.00015009,2]
[338634684,1726828232348,-500.0,0.00015009,2]
[338634685,1726828232359,-500.0,0.00015009,2]
[338634686,1726828232370,-500.0,0.00015009,2]
[338634687,1726828232380,-500.0,0.00015009,2]
[338634688,1726828232392,-500.0,0.00015009,2]
[338634689,1726828232404,-500.0,0.00015009,2]
[338634690,1726828232415,-500.0,0.00015009,2]
[338634691,1726828232425,-500.0,0.00015009,2]
[338634692,1726828232435,-500.0,0.00015009,2]
[338634693,1726828232446,-266.0,0.00015009,2]
[338634694,1726828232456,-151.0,0.00015009,2]
[338634695,1726828232467,-151.0,0.00015009,2]
[338634696,1726828232478,-239.42888,0.00015009,2]
[338634697,1726828232488,-151.0,0.00015009,2]
[338634698,1726828232498,-239.42888,0.00015009,2]
[338634699,1726828232510,-533.052703,0.00015009,2]
[338634700,1726828232519,-533.052703,0.00015009,2]
[338634701,1726828232528,-221.806102,0.00015009,2]
[338634702,1726828232537,-221.806102,0.00015009,2]
[338634703,1726828232547,-151.0,0.00015009,2]
[338634704,1726828232556,-151.0,0.00015009,2]
[338634705,1726828232566,-151.0,0.00015009,2]
[338634706,1726828232575,-152.158607,0.00015009,2]
[338634707,1726828232584,-151.737006,0.00015009,2]
[338634708,1726828232594,-151.0,0.00015009,2]
[338634709,1726828232603,-151.0,0.00015009,2]
[338634710,1726828232612,-151.0,0.00015009,2]
[338634711,1726828232622,-151.538324,0.00015009,2]
[338634712,1726828232632,-900.07084,0.00015009,2]
[338634713,1726828232641,-900.07084,0.00015009,2]
[338634714,1726828232651,-696.148831,0.00015009,2]
[338634715,1726828232660,-696.148831,0.00015009,2]
[338634716,1726828232670,-179.281592,0.00015009,2]
[338634717,1726828232679,-190.304279,0.00015009,2]
[338634718,1726828232689,-190.304279,0.00015009,2]
[338634719,1726828232699,-179.281592,0.00015009,2]
[338634720,1726828232709,-151.0,0.00015009,2]
[338634721,1726828232718,-271.848462,0.00015009,2]
[338634722,1726828232728,-271.848462,0.00015009,2]
[338634723,1726828232737,-151.0,0.00015009,2]
[338634724,1726828232747,-151.0,0.00015009,2]
[338634725,1726828232756,-420.40011,0.00015009,2]
[338634726,1726828232766,-420.40011,0.00015009,2]
[338634727,1726828232776,-420.40011,0.00015009,2]
[338634728,1726828232785,-420.40011,0.00015009,2]
[338634729,1726828232794,-151.0,0.00015009,2]
[338634730,1726828232805,-151.0,0.00015009,2]
[338634731,1726828232818,-202.983051,0.00015009,2]
[338634732,1726828232829,-202.983051,0.00015009,2]
[338634733,1726828232838,-202.983051,0.00015009,2]
[338634734,1726828232849,-202.983051,0.00015009,2]
[338634735,1726828232860,-151.0,0.00015168,2]
[338634736,1726828232870,-151.0,0.00015168,2]
[338634737,1726828232879,-574.835358,0.00015168,2]
[338634738,1726828232889,-151.0,0.00015168,2]
[338634739,1726828232899,-574.835358,0.00015168,2]
[338634740,1726828232908,-426.125839,0.00015168,2]
[338634741,1726828232918,-426.125839,0.00015168,2]
[338634742,1726828232928,-214.696169,0.00015168,2]
[338634743,1726828232939,-214.696169,0.00015168,2]
[338634744,1726828232948,-151.0,0.00015168,2]
[338634745,1726828232957,-900.07084,0.00015168,2]
[338634746,1726828232967,-900.07084,0.00015168,2]
[338634747,1726828232977,-696.148831,0.00015168,2]
[338634748,1726828232986,-151.0,0.00015168,2]
[338634749,1726828232997,-696.148831,0.00015168,2]
[338634750,1726828233006,-151.0,0.00015168,2]
[338634751,1726828233017,-151.0,0.00015168,2]
[338634752,1726828233026,-153.307512,0.00015168,2]
[338634753,1726828233036,-151.0,0.00015168,2]
[338634754,1726828233046,-267.802018,0.00015218,2]
[338634755,1726828233055,-151.0,0.00015218,2]
[338634756,1726828233065,-151.0,0.00015218,2]
[338634757,1726828233075,-151.0,0.00015218,2]
[338634758,1726828233084,-151.0,0.00015218,2]
[338634759,1726828233094,-151.0,0.00015218,2]
[338634760,1726828233103,-151.0,0.00015218,2]
[338634761,1726828233113,-420.40011,0.00015218,2]
[338634762,1726828233124,-420.40011,0.00015218,2]
[338634763,1726828233133,-151.0,0.00015218,2]
[338634764,1726828233143,-202.983051,0.00015218,2]
[338634765,1726828233153,-202.983051,0.00015218,2]
[338634766,1726828233163,-150.0,0.00015333,2]
[338634767,1726828233173,-208.6901718,0.00015342,2]
[338634768,1726828233183,-151.0,0.00015417,2]
[338634769,1726828233198,-221.806102,0.00015417,2]
[338634770,1726828233207,-221.806102,0.00015417,2]
[338634771,1726828233217,-151.0,0.00015417,2]
[338634772,1726828233226,-151.0,0.00015417,2]
[338634773,1726828233236,-40.22510793,0.00015417,2]
[338634774,1726828233250,-139.05648407,0.00015417,2]
[338634775,1726828233259,-179.281592,0.00015417,2]
[338634776,1726828233269,-208.7923626,0.00015578,2]
[338634777,1726828233279,-910.18315509,0.00015738,2]
[338634778,1726828233288,-420.0,0.00015955,2]
[338634779,1726828233297,-3658.87763252,0.00016,2]
[338634791,1726828237943,-14610.56236748,0.00016,2]
[338634792,1726828237952,-151.0,0.00016,2]
[338634793,1726828237962,-549.380692,0.00016,2]
[338634794,1726828237971,-549.380692,0.00016,2]
[338634795,1726828237980,-151.0,0.00016,2]
[338634796,1726828237990,-151.0,0.00016,2]
[338634797,1726828237999,-151.0,0.00016,2]
[338634798,1726828238009,-7.20374852,0.00016,2]
[338634799,1726828238020,-143.79625148,0.00016,2]
[338634800,1726828238030,-151.0,0.00016,2]
[338634801,1726828238039,-574.835358,0.00016,2]
[338634802,1726828238048,-151.0,0.00016,2]
[338634804,1726828238057,-235.75123116,0.00016,2]
[338634807,1726828238077,-339.08412684,0.00016,2]
[338634808,1726828238087,-377.59958899,0.00016,2]
[338634848,1726828239924,-5440.96292309,0.00014895,2]
[338634850,1726828239934,-10296.51104924,0.000159,2]
[338634852,1726828239944,-48.52625001,0.00016,2]
[338634854,1726828239953,-426.125839,0.00016,2]
[338634856,1726828239963,-151.0,0.00016,2]
[338634857,1726828239972,-151.0,0.00016,2]
[338634859,1726828239982,-151.0,0.00016,2]
[338634861,1726828239992,-151.0,0.00016,2]
[338634863,1726828240001,-239.42888,0.00016,2]
[338634865,1726828240010,-239.42888,0.00016,2]
[338634867,1726828240019,-533.052703,0.00016,2]
[338634869,1726828240029,-533.052703,0.00016,2]
[338634871,1726828240039,-221.806102,0.00016,2]
[338634872,1726828240049,-221.806102,0.00016,2]
[338634874,1726828240058,-151.0,0.00016,2]
[338634875,1726828240068,-151.0,0.00016,2]
[338634876,1726828240080,-151.0,0.00016,2]
[338634877,1726828240090,-151.0,0.00016,2]
[338634878,1726828240099,-214.696169,0.00016,2]
[338634879,1726828240108,-214.696169,0.00016,2]
[338634880,1726828240117,-151.0,0.00016,2]
[338634881,1726828240127,-151.0,0.00016,2]
[338634882,1726828240137,-900.07084,0.00016,2]
[338634883,1726828240147,-900.07084,0.00016,2]
[338634884,1726828240157,-900.07084,0.00016,2]
[338634885,1726828240167,-900.07084,0.00016,2]
[338634886,1726828240177,-696.148831,0.00016,2]
[338634887,1726828240186,-696.148831,0.00016,2]
[338634888,1726828240197,-151.0,0.00016,2]
[338634889,1726828240207,-696.148831,0.00016,2]
[338634890,1726828240216,-696.148831,0.00016,2]
[338634891,1726828240226,-179.281592,0.00016,2]
[338634892,1726828240235,-190.304279,0.00016,2]
[338634893,1726828240244,-151.0,0.00016,2]
[338634894,1726828240253,-190.304279,0.00016,2]
[338634895,1726828240263,-179.281592,0.00016,2]
[338634896,1726828240272,-151.0,0.00016,2]
[338634897,1726828240282,-271.848462,0.00016,2]
[338634898,1726828240291,-271.848462,0.00016,2]
[338634899,1726828240300,-200.454672,0.00016,2]
[338634900,1726828240312,-420.40011,0.00016,2]
[338634901,1726828240322,-420.40011,0.00016,2]
[338634902,1726828240332,-420.40011,0.00016,2]
[338634903,1726828240342,-420.40011,0.00016,2]
[338634904,1726828240351,-213.822372,0.00016,2]
[338634905,1726828240362,-202.983051,0.00016,2]
[338634906,1726828240371,-202.983051,0.00016,2]
[338634907,1726828240381,-202.983051,0.00016,2]
[338634908,1726828240391,-202.983051,0.00016,2]
[338634909,1726828240401,-420.0,0.00016029,2]
[338634910,1726828240410,-115959.766019,0.00016069,2]
[338634911,1726828240421,-1336.211551,0.00016069,2]
[338634912,1726828240431,-900.07084,0.00016079,2]
[338634913,1726828240443,-900.07084,0.00016079,2]
[338634914,1726828240453,-900.07084,0.00016079,2]
[338634915,1726828240462,-900.07084,0.00016079,2]
[338634916,1726828240472,-696.148831,0.00016079,2]
[338634917,1726828240483,-696.148831,0.00016079,2]
[338634918,1726828240492,-696.148831,0.00016079,2]
[338634919,1726828240501,-696.148831,0.00016079,2]
[338634920,1726828240511,-420.40011,0.00016079,2]
[338634921,1726828240521,-420.40011,0.00016079,2]
[338634922,1726828240530,-420.40011,0.00016079,2]
[338634923,1726828240540,-420.40011,0.00016079,2]
[338634924,1726828240551,-420.40011,0.00016079,2]
[338634925,1726828240559,-420.40011,0.00016079,2]
[338634926,1726828240569,-202.983051,0.00016079,2]
[338634927,1726828240579,-202.983051,0.00016079,2]
[338634928,1726828240588,-202.983051,0.00016079,2]
[338634929,1726828240597,-202.983051,0.00016079,2]
[338634930,1726828240606,-202.983051,0.00016079,2]
[338634931,1726828240616,-202.983051,0.00016079,2]
[338634932,1726828240625,-189.0,0.00016138,2]
[338634933,1726828240635,-200.029022,0.00016142,2]
[338634934,1726828240644,-239.42888,0.00016142,2]
[338634935,1726828240654,-239.42888,0.00016142,2]
[338634936,1726828240663,-533.052703,0.00016142,2]
[338634937,1726828240672,-533.052703,0.00016142,2]
[338634938,1726828240682,-221.806102,0.00016142,2]
[338634939,1726828240692,-221.806102,0.00016142,2]
[338634940,1726828240701,-151.0,0.00016142,2]
[338634941,1726828240710,-190.304279,0.00016142,2]
[338634942,1726828240719,-179.281592,0.00016142,2]
[338634943,1726828240728,-190.304279,0.00016142,2]
[338634944,1726828240738,-179.281592,0.00016142,2]
[338634945,1726828240747,-271.848462,0.00016142,2]
[338634946,1726828240757,-271.848462,0.00016142,2]
[338634947,1726828240766,-153.4478405,0.00016164,2]
[338634948,1726828240776,-549.380692,0.00016338,2]
[338634949,1726828240785,-549.380692,0.00016338,2]
[338634950,1726828240794,-1552.00865594,0.00016338,2]
[338634951,1726828240803,-57979.8830095,0.00016342,2]
[338634952,1726828240813,-668.1057755,0.00016342,2]
[338634953,1726828240823,-2137.99774339,0.00016342,5]
[338634954,1726828240840,-3421.597461,0.00016342,5]
[338635011,1726828243058,-198.67281259,0.0001634,2]
[338635012,1726828243070,-180.5083137,0.0001634,2]
[338635013,1726828243083,-500.0,0.0001634,2]
[338635014,1726828243092,-500.0,0.0001634,2]
[338635015,1726828243101,-238.90087385,0.0001634,2]
[338635020,1726828257433,222.58,0.00010959,2]
[338635337,1726829298380,252.49,0.0002032,120]
[338635444,1726829432033,-300.0,0.00014035,2]
[338635446,1726829432046,-300.0,0.00014035,2]
[338635449,1726829432058,-24900.0,0.00014036,2]
[338635451,1726829432069,-177.720491,0.00014488,2]
[338635453,1726829432080,-177.720491,0.00014639,2]
[338635455,1726829432093,-150.0,0.00014776,2]
[338635457,1726829432113,-177.720491,0.0001479,2]
[338635459,1726829432125,-218.73905366,0.000149,2]
[338635462,1726829432137,-4269.91192359,0.00014909,2]
[338635464,1726829432147,-177.720491,0.00014941,2]
[338635466,1726829432159,-259.544407,0.00015009,2]
[338635468,1726829432170,-151.0,0.00015009,2]
[338635470,1726829432181,-151.0,0.00015009,2]
[338635473,1726829432193,-151.0,0.00015009,2]
[338635475,1726829432205,-151.0,0.00015009,2]
[338635477,1726829432216,-151.0,0.00015009,2]
[338635479,1726829432227,-220.289489,0.00015009,2]
[338635481,1726829432239,-220.289489,0.00015009,2]
[338635483,1726829432250,-220.289489,0.00015009,2]
[338635486,1726829432262,-220.289489,0.00015009,2]
[338635488,1726829432273,-220.289489,0.00015009,2]
[338635490,1726829432284,-220.289489,0.00015009,2]
[338635492,1726829432296,-167.975073,0.00015009,2]
[338635495,1726829432324,-167.975073,0.00015009,2]
[338635497,1726829432339,-167.975073,0.00015009,2]
[338635500,1726829432357,-167.975073,0.00015009,2]
[338635502,1726829432370,-167.975073,0.00015009,2]
[338635504,1726829432384,-167.975073,0.00015009,2]
[338635506,1726829432399,-177.720491,0.00015092,2]
[338635509,1726829432413,-151.0,0.00015168,2]
[338635510,1726829432426,-220.289489,0.00015168,2]
[338635512,1726829432439,-220.289489,0.00015168,2]
[338635514,1726829432452,-167.975073,0.00015168,2]
[338635516,1726829432465,-167.975073,0.00015168,2]
[338635518,1726829432477,-177.720491,0.00015243,2]
[338635519,1726829432490,-420.0,0.00015376,2]
[338635520,1726829432503,-246.028563,0.00015417,2]
[338635521,1726829432515,-220.289489,0.00015417,2]
[338635522,1726829432528,-220.289489,0.00015417,2]
[338635523,1726829432540,-167.975073,0.00015417,2]
[338635524,1726829432552,-167.975073,0.00015417,2]
[338635525,1726829432564,-500.000001,0.00015438,2]
[338635526,1726829432576,-420.0,0.00015439,2]
[338635527,1726829432587,-4160.89731675,0.00015958,2]
[338635531,1726829435502,200.0,0.0001401,2]
[338635539,1726829438381,-513.159394,0.0001558,2]
[338635540,1726829438391,-1379.64774178,0.00015958,2]
[338635541,1726829438407,-1598.72950497,0.00015958,2]
[338635542,1726829438416,-220.289489,0.00016,2]
[338635543,1726829438425,-220.289489,0.00016,2]
[338635545,1726829438435,-220.289489,0.00016,2]
[338635546,1726829438444,-220.289489,0.00016,2]
[338635547,1726829438454,-220.289489,0.00016,2]
[338635548,1726829438463,-220.289489,0.00016,2]
[338635549,1726829438472,-167.975073,0.00016,2]
[338635550,1726829438482,-167.975073,0.00016,2]
[338635551,1726829438491,-167.975073,0.00016,2]
[338635552,1726829438501,-167.975073,0.00016,2]
[338635553,1726829438511,-167.975073,0.00016,2]
[338635554,1726829438521,-167.975073,0.00016,2]
[338635555,1726829438530,-1000.0,0.00016,2]
[338635556,1726829438539,-220.289489,0.0001607,2]
[338635557,1726829438548,-220.289489,0.0001607,2]
[338635558,1726829438557,-167.975073,0.0001607,2]
[338635559,1726829438566,-167.975073,0.0001607,2]
[338635560,1726829438575,-220.289489,0.00016079,2]
[338635561,1726829438585,-220.289485,0.00016079,2]
[338635562,1726829438594,-167.975073,0.00016079,2]
[338635563,1726829438605,-167.975081,0.00016079,2]
[338635564,1726829438614,-163.42965179,0.0001625,2]
[338635565,1726829438623,-163.42965176,0.00016264,2]
[338635566,1726829438632,-163.42965176,0.00016279,2]
[338635567,1726829438642,-163.42965176,0.00016293,2]
[338635568,1726829438652,-163.42965176,0.00016307,2]
[338635569,1726829438661,-48.45336251,0.00016338,2]
[338635586,1726829440105,-1348.3544278,0.00016338,2]
[338635588,1726829440115,-190.31030363,0.00016341,2]
[338635590,1726829440124,-552.98906996,0.00016341,2]
[338635592,1726829440133,-50009.6975961,0.0001635,2]
[338635594,1726829440142,-567.88990917,0.0001635,2]
[338635596,1726829440152,-151.0,0.00016352,2]
[338635598,1726829440161,-319.831622,0.00016352,2]
[338635599,1726829440171,-151.0,0.00016352,2]
[338635601,1726829440180,-151.0,0.00016352,2]
[338635603,1726829440190,-151.0,0.00016352,2]
[338635605,1726829440199,-151.0,0.00016352,2]
[338635607,1726829440209,-151.0,0.00016352,2]
[338635609,1726829440218,-151.0,0.00016352,2]
[338635611,1726829440227,-151.0,0.00016352,2]
[338635613,1726829440237,-360.028336,0.00016352,2]
[338635615,1726829440246,-360.028336,0.00016352,2]
[338635617,1726829440255,-151.0,0.00016352,2]
[338635619,1726829440264,-282.815918,0.00016352,2]
[338635621,1726829440273,-151.0,0.00016352,2]
[338635623,1726829440283,-162.117975,0.00016352,2]
[338635625,1726829440292,-278.459532,0.00016352,2]
[338635627,1726829440302,-278.459532,0.00016352,2]
[338635629,1726829440314,-525.478302,0.00016352,2]
[338635631,1726829440323,-525.478302,0.00016352,2]
[338635632,1726829440333,-4269.91192357,0.00016355,2]
[338635635,1726829440342,-151.0,0.0001636,2]
[338635637,1726829440352,-151.0,0.0001636,2]
[338635638,1726829440362,-151.0,0.0001636,2]
[338635641,1726829440371,-151.0,0.0001636,2]
[338635642,1726829440380,-151.0,0.0001636,2]
[338635644,1726829440390,-151.0,0.0001636,2]
[338635646,1726829440399,-151.0,0.0001636,2]
[338635648,1726829440410,-151.0,0.0001636,2]
[338635650,1726829440419,-163.109077,0.0001636,2]
[338635652,1726829440428,-163.109077,0.0001636,2]
[338635654,1726829440438,-151.0,0.0001636,2]
[338635656,1726829440447,-360.028336,0.0001636,2]
[338635658,1726829440456,-360.028336,0.0001636,2]
[338635660,1726829440466,-151.0,0.0001636,2]
[338635662,1726829440476,-151.0,0.0001636,2]
[338635664,1726829440486,-151.0,0.0001636,2]
[338635666,1726829440495,-151.0,0.0001636,2]
[338635668,1726829440505,-151.0,0.0001636,2]
[338635670,1726829440514,-272.893453,0.0001636,2]
[338635672,1726829440523,-151.0,0.0001636,2]
[338635673,1726829440532,-151.0,0.0001636,2]
[338635674,1726829440542,-151.0,0.0001636,2]
[338635675,1726829440553,-199.95451,0.0001636,2]
[338635676,1726829440562,-348.450672,0.0001636,2]
[338635677,1726829440571,-348.450672,0.0001636,2]
[338635678,1726829440580,-348.450672,0.0001636,2]
[338635679,1726829440589,-348.450672,0.0001636,2]
[338635680,1726829440599,-171.756935,0.0001636,2]
[338635681,1726829440608,-171.756935,0.0001636,2]
[338635682,1726829440618,-171.756935,0.0001636,2]
[338635683,1726829440628,-171.756935,0.0001636,2]
[338635684,1726829440637,-151.0,0.0001636,2]
[338635685,1726829440647,-254.966097,0.0001636,2]
[338635686,1726829440657,-151.207328,0.0001636,2]
[338635687,1726829440667,-151.207328,0.0001636,2]
[338635688,1726829440676,-151.0,0.0001636,2]
[338635689,1726829440685,-151.207328,0.0001636,2]
[338635690,1726829440695,-151.207328,0.0001636,2]
[338635691,1726829440704,-151.0,0.00016362,2]
[338635692,1726829440714,-28991.23942397,0.00016362,2]
[338635735,1726829443332,-151.0,0.0001636,2]
[338635736,1726829443342,-151.0,0.00016362,2]
[338635737,1726829443352,-140.42024681,0.00016362,2]
[338635773,1726829446196,-2790.6539306,0.00016362,2]
[338635968,1726830632284,-300.0,0.00015191,2]
[338635969,1726830632294,-300.0,0.00015191,2]
[338635970,1726830632303,-7052.63624,0.00015192,2]
[338635977,1726830638566,-674.80666933,0.00015192,2]
[338635978,1726830638582,-2848.44892029,0.00015192,2]
[338635979,1726830638593,-13231.55107971,0.00015293,2]
[338635980,1726830638606,-6189.0415356,0.00015293,2]
[338635981,1726830638618,-480.02913384,0.00015293,2]
[338635985,1726830640339,-4898.6450412,0.00015293,2]
[338635986,1726830640413,-100.73320965,0.00015293,2]
[338635987,1726830640423,-635.16853254,0.00015699,2]
[338635988,1726830640432,-7139.2745635,0.00015898,2]
[338635989,1726830640442,-150.0,0.00015956,2]
[338635990,1726830640452,-1000.0,0.00016,2]
[338635991,1726830640461,-1000.0,0.00016,2]
[338635992,1726830640470,-1000.0,0.00016,2]
[338635993,1726830640480,-540.0,0.00016,2]
[338635994,1726830640490,-1237.3,0.000162,2]
[338635995,1726830640499,-500.0,0.0001626,2]
[338635996,1726830640508,-500.0,0.0001626,7]
[338635997,1726830640518,-500.0,0.0001626,7]
[338635998,1726830640528,-500.0,0.0001626,7]
[338635999,1726830640539,-1344.78831483,0.00016338,2]
[338636000,1726830640548,-1000.0,0.0001635,2]
[338636001,1726830640557,-151.0,0.0001636,2]
[338636002,1726830640567,-151.0,0.0001636,2]
[338636003,1726830640576,-154.953623,0.0001636,2]
[338636004,1726830640587,-154.953623,0.0001636,2]
[338636005,1726830640596,-500.0,0.0001636,2]
[338636006,1726830640606,-190.31030363,0.00016361,2]
[338636007,1726830640616,-552.98906996,0.00016361,2]
[338636008,1726830640627,-151.0,0.00016362,2]
[338636009,1726830640638,-152.466372,0.00016362,2]
[338636010,1726830640649,-151.0,0.0001637,2]
[338636011,1726830640659,-20022.16532452,0.00016372,2]
[338636012,1726830640668,-151.0,0.00016372,2]
[338636013,1726830640679,-151.0,0.00016372,2]
[338636014,1726830640690,-151.0,0.00016372,2]
[338636015,1726830640701,-154.953623,0.00016372,2]
[338636016,1726830640711,-154.953623,0.00016372,2]
[338636017,1726830640723,-277.475254,0.00016376,2]
[338636018,1726830640733,-151.356,0.00016377,2]
[338636019,1726830640743,-250.0,0.00016377,2]
[338636020,1726830640752,-220.412,0.00016377,2]
[338636021,1726830640765,-49863.1438873,0.00016378,2]
[338636022,1726830640777,-539.4954137,0.00016378,2]
[338636023,1726830640789,-250.981,0.00016379,2]
[338636024,1726830640799,-524.0,0.00016379,2]
[338636025,1726830640809,-150.0,0.00016379,2]
[338636026,1726830640819,-1216.0,0.00016379,2]
[338636027,1726830640829,-151.0,0.00016379,2]